[Event "*** Titled Tuesday Blitz"]
[Site "Chess.com"]
[Date "2020.05.12"]
[Round "4"]
[White "DanielTitichoca"]
[Black "Drags95"]
[Result "0-1"]
[WhiteElo "2348"]
[BlackElo "2717"]
[TimeControl "180+1"]
[EndTime "10:37:02 PDT"]
[Termination "Drags95 won by resignation"]

1. Nf3 {[%clk 0:03:00.1]} 1... Nf6 {[%clk 0:02:59.5]} 2. g3 {[%clk 0:02:58.2]}
2... g6 {[%clk 0:02:58]} 3. Bg2 {[%clk 0:02:58.6]} 3... Bg7 {[%clk 0:02:58.9]}
4. O-O {[%clk 0:02:59.2]} 4... O-O {[%clk 0:02:59.6]} 5. b3 {[%clk 0:02:59.8]}
5... d6 {[%clk 0:02:48.4]} 6. Bb2 {[%clk 0:02:59.8]} 6... e5 {[%clk 0:02:48.6]}
7. c4 {[%clk 0:02:59.7]} 7... c6 {[%clk 0:02:41]} 8. d3 {[%clk 0:02:37.3]} 8...
h6 {[%clk 0:02:29.6]} 9. c5 {[%clk 0:02:30.8]} 9... Re8 {[%clk 0:02:04.1]} 10.
cxd6 {[%clk 0:02:29.3]} 10... Qxd6 {[%clk 0:02:05]} 11. Nbd2 {[%clk 0:02:29.1]}
11... Nbd7 {[%clk 0:01:54.2]} 12. a3 {[%clk 0:02:24.6]} 12... Nb6 {[%clk
0:01:50.9]} 13. Rc1 {[%clk 0:02:14.5]} 13... Bf5 {[%clk 0:01:46.5]} 14. Nc4
{[%clk 0:01:51.1]} 14... Nxc4 {[%clk 0:01:46.1]} 15. Rxc4 {[%clk 0:01:47.1]}
15... Nd7 {[%clk 0:01:34.2]} 16. Qc2 {[%clk 0:01:38.8]} 16... Nb6 {[%clk
0:01:30]} 17. Rc5 {[%clk 0:01:32.4]} 17... e4 {[%clk 0:01:30.3]} 18. Nh4 {[%clk
0:01:11]} 18... exd3 {[%clk 0:01:09.5]} 19. Nxf5 {[%clk 0:01:07.9]} 19... gxf5
{[%clk 0:01:09.7]} 20. Qc1 {[%clk 0:00:36.7]} 20... Bxb2 {[%clk 0:01:03.1]} 21.
Qxh6 {[%clk 0:00:27.4]} 21... Qxh6 {[%clk 0:01:01.8]} 0-1

[Event "*** Titled Tuesday Blitz"]
[Site "Chess.com"]
[Date "2020.05.12"]
[Round "4"]
[White "MilanovicDan"]
[Black "silverback96"]
[Result "1-0"]
[WhiteElo "2572"]
[BlackElo "2241"]
[TimeControl "180+1"]
[EndTime "10:37:03 PDT"]
[Termination "MilanovicDan won by resignation"]

1. d4 {[%clk 0:03:00.9]} 1... Nf6 {[%clk 0:02:59.5]} 2. c4 {[%clk 0:03:00.2]}
2... c5 {[%clk 0:02:59.7]} 3. d5 {[%clk 0:02:59.5]} 3... b5 {[%clk 0:02:59.8]}
4. Nd2 {[%clk 0:02:58.1]} 4... b4 {[%clk 0:02:53.8]} 5. a3 {[%clk 0:02:57]} 5...
bxa3 {[%clk 0:02:53.4]} 6. Rxa3 {[%clk 0:02:56.2]} 6... d6 {[%clk 0:02:50]} 7.
e4 {[%clk 0:02:54.8]} 7... g6 {[%clk 0:02:49.3]} 8. b3 {[%clk 0:02:54.8]} 8...
Bg7 {[%clk 0:02:49.7]} 9. Bb2 {[%clk 0:02:55.2]} 9... O-O {[%clk 0:02:50.3]} 10.
Ngf3 {[%clk 0:02:47.1]} 10... e5 {[%clk 0:02:46.9]} 11. Be2 {[%clk 0:02:42.3]}
11... Nh5 {[%clk 0:02:46.4]} 12. O-O {[%clk 0:02:37.6]} 12... f5 {[%clk
0:02:41.4]} 13. Ne1 {[%clk 0:02:36.3]} 13... Nf6 {[%clk 0:02:16.7]} 14. f3
{[%clk 0:02:26.4]} 14... f4 {[%clk 0:02:15.6]} 15. Nd3 {[%clk 0:02:25.4]} 15...
g5 {[%clk 0:02:12.9]} 16. Bc3 {[%clk 0:02:17.7]} 16... Na6 {[%clk 0:01:38.4]}
17. Qa1 {[%clk 0:02:16.2]} 17... Nb4 {[%clk 0:01:38.3]} 18. Rxa7 {[%clk
0:01:47.8]} 18... Rxa7 {[%clk 0:01:38.6]} 19. Qxa7 {[%clk 0:01:48.2]} 19... Nc2
{[%clk 0:01:38.5]} 20. b4 {[%clk 0:01:40.7]} 20... cxb4 {[%clk 0:01:38.3]} 21.
Nxb4 {[%clk 0:01:40.5]} 21... Ne3 {[%clk 0:01:38.5]} 22. Nc6 {[%clk 0:01:36.4]}
22... Qe8 {[%clk 0:01:28]} 23. Rb1 {[%clk 0:01:35.4]} 23... g4 {[%clk
0:01:20.5]} 24. Rb8 {[%clk 0:01:32.3]} 24... Qg6 {[%clk 0:01:12.9]} 25. Ne7+
{[%clk 0:01:31.4]} 25... Kh8 {[%clk 0:01:12]} 26. Nxg6+ {[%clk 0:01:31.1]} 26...
hxg6 {[%clk 0:01:11.7]} 27. c5 {[%clk 0:01:27.1]} 27... Nd7 {[%clk 0:00:58.2]}
28. c6 {[%clk 0:01:17.7]} 28... Nxb8 {[%clk 0:00:57.3]} 29. Qxb8 {[%clk
0:01:17.7]} 29... Rd8 {[%clk 0:00:46.5]} 30. Ba5 {[%clk 0:01:12]} 1-0

[Event "*** Titled Tuesday Blitz"]
[Site "Chess.com"]
[Date "2020.05.12"]
[Round "4"]
[White "TigranMukhutdinov"]
[Black "AwesomeMango"]
[Result "1-0"]
[WhiteElo "2429"]
[BlackElo "2230"]
[TimeControl "180+1"]
[EndTime "10:37:04 PDT"]
[Termination "TigranMukhutdinov won by resignation"]

1. Nf3 {[%clk 0:03:00.9]} 1... d5 {[%clk 0:02:58]} 2. g3 {[%clk 0:03:01]} 2...
Nd7 {[%clk 0:02:58]} 3. d4 {[%clk 0:03:00.6]} 3... Ngf6 {[%clk 0:02:52.7]} 4.
Bg2 {[%clk 0:03:00.6]} 4... e6 {[%clk 0:02:50.6]} 5. O-O {[%clk 0:03:01]} 5...
Be7 {[%clk 0:02:50.2]} 6. c4 {[%clk 0:03:01.6]} 6... O-O {[%clk 0:02:48]} 7.
Nbd2 {[%clk 0:02:58.9]} 7... c6 {[%clk 0:02:47.7]} 8. Qc2 {[%clk 0:02:58.3]}
8... dxc4 {[%clk 0:02:26.7]} 9. Nxc4 {[%clk 0:02:55.4]} 9... c5 {[%clk
0:02:22.1]} 10. Rd1 {[%clk 0:02:51.2]} 10... Qe8 {[%clk 0:02:12]} 11. Bf4 {[%clk
0:02:48.1]} 11... Nd5 {[%clk 0:02:08.7]} 12. Nd6 {[%clk 0:02:41.7]} 12... Qd8
{[%clk 0:02:02]} 13. Nxc8 {[%clk 0:02:32.2]} 13... Rxc8 {[%clk 0:02:00.5]} 14.
dxc5 {[%clk 0:02:30.5]} 14... Rxc5 {[%clk 0:01:59]} 15. Qb3 {[%clk 0:02:28.7]}
15... Qc8 {[%clk 0:01:57]} 16. Bd2 {[%clk 0:02:25.6]} 16... Bf6 {[%clk
0:01:51.2]} 17. e4 {[%clk 0:02:22.6]} 17... N5b6 {[%clk 0:01:36]} 18. Bb4 {[%clk
0:02:21.4]} 18... Rb5 {[%clk 0:01:11.4]} 19. Bf1 {[%clk 0:01:41.7]} 19... Nc5
{[%clk 0:01:06]} 20. Qa3 {[%clk 0:01:42]} 20... Rxb4 {[%clk 0:00:50.2]} 21. Qxb4
{[%clk 0:01:42.9]} 21... Be7 {[%clk 0:00:42.1]} 22. Rac1 {[%clk 0:01:39.6]}
22... Nd3 {[%clk 0:00:37.9]} 23. Rxc8 {[%clk 0:01:35.6]} 23... Nxb4 {[%clk
0:00:37.5]} 24. Rxf8+ {[%clk 0:01:35]} 24... Kxf8 {[%clk 0:00:37.7]} 25. a3
{[%clk 0:01:35.1]} 25... Nc6 {[%clk 0:00:35.6]} 26. Bb5 {[%clk 0:01:35.1]} 26...
Bc5 {[%clk 0:00:27.5]} 27. Bxc6 {[%clk 0:01:33.3]} 27... bxc6 {[%clk 0:00:27.4]}
28. Ne5 {[%clk 0:01:34]} 28... Ke7 {[%clk 0:00:21.1]} 29. Nxc6+ {[%clk 0:01:34]}
29... Kf6 {[%clk 0:00:21.1]} 30. b4 {[%clk 0:01:31.6]} 30... Bf8 {[%clk
0:00:15.8]} 31. Rd8 {[%clk 0:01:31.1]} 1-0

[Event "*** Titled Tuesday Blitz"]
[Site "Chess.com"]
[Date "2020.05.12"]
[Round "4"]
[White "queen_iryna"]
[Black "Zakaryan_David"]
[Result "0-1"]
[WhiteElo "2317"]
[BlackElo "2499"]
[TimeControl "180+1"]
[EndTime "10:37:07 PDT"]
[Termination "Zakaryan_David won by resignation"]

1. d4 {[%clk 0:03:00.9]} 1... Nf6 {[%clk 0:02:59.9]} 2. Bg5 {[%clk 0:02:58.7]}
2... Ng8 {[%clk 0:02:54.6]} 3. Nc3 {[%clk 0:02:57.1]} 3... h6 {[%clk 0:02:53.9]}
4. Bc1 {[%clk 0:02:54.9]} 4... d5 {[%clk 0:02:51.3]} 5. Nf3 {[%clk 0:02:53.2]}
5... Bf5 {[%clk 0:02:50]} 6. Bf4 {[%clk 0:02:46.7]} 6... c6 {[%clk 0:02:50.1]}
7. e3 {[%clk 0:02:46.2]} 7... e6 {[%clk 0:02:47.5]} 8. Bd3 {[%clk 0:02:46]} 8...
Bxd3 {[%clk 0:02:47.6]} 9. Qxd3 {[%clk 0:02:46.9]} 9... Bd6 {[%clk 0:02:46.8]}
10. Bxd6 {[%clk 0:02:46.2]} 10... Qxd6 {[%clk 0:02:46.2]} 11. Ne5 {[%clk
0:02:46.4]} 11... Nd7 {[%clk 0:02:46.2]} 12. f4 {[%clk 0:02:45.7]} 12... Ngf6
{[%clk 0:02:40.7]} 13. O-O {[%clk 0:02:44.8]} 13... a6 {[%clk 0:02:38.6]} 14. e4
{[%clk 0:02:36.3]} 14... O-O {[%clk 0:02:30.1]} 15. Nxd7 {[%clk 0:02:33.9]}
15... Nxd7 {[%clk 0:02:24.8]} 16. e5 {[%clk 0:02:33.5]} 16... Qb4 {[%clk
0:02:24.9]} 17. f5 {[%clk 0:02:03.7]} 17... c5 {[%clk 0:02:22.2]} 18. f6 {[%clk
0:01:53]} 18... Qxd4+ {[%clk 0:02:19.8]} 19. Qxd4 {[%clk 0:01:52.6]} 19... cxd4
{[%clk 0:02:20.7]} 20. Ne2 {[%clk 0:01:52.9]} 20... gxf6 {[%clk 0:02:17.5]} 21.
exf6 {[%clk 0:01:38.1]} 21... e5 {[%clk 0:02:17.2]} 22. Ng3 {[%clk 0:01:35.1]}
22... Kh7 {[%clk 0:02:15.4]} 23. Rae1 {[%clk 0:01:31.8]} 23... Rac8 {[%clk
0:02:13.6]} 24. Rf2 {[%clk 0:01:10.7]} 24... Rc6 {[%clk 0:02:11.8]} 25. Rd1
{[%clk 0:00:50.6]} 25... Nxf6 {[%clk 0:01:56.6]} 26. Re2 {[%clk 0:00:38]} 26...
Re8 {[%clk 0:01:48.4]} 27. h3 {[%clk 0:00:37.6]} 27... Kg6 {[%clk 0:01:45.4]}
28. Nf1 {[%clk 0:00:35.4]} 28... Ne4 {[%clk 0:01:43.6]} 29. Nh2 {[%clk
0:00:27.9]} 29... f6 {[%clk 0:01:42.7]} 30. Nf3 {[%clk 0:00:25.5]} 30... Rec8
{[%clk 0:01:36]} 31. c3 {[%clk 0:00:24.2]} 31... dxc3 {[%clk 0:01:35]} 32. Rxd5
{[%clk 0:00:21.9]} 32... c2 {[%clk 0:01:30.6]} 0-1

[Event "*** Titled Tuesday Blitz"]
[Site "Chess.com"]
[Date "2020.05.12"]
[Round "4"]
[White "ural58"]
[Black "DryCounty"]
[Result "1-0"]
[WhiteElo "2470"]
[BlackElo "2609"]
[TimeControl "180+1"]
[EndTime "10:37:09 PDT"]
[Termination "ural58 won by resignation"]

1. e4 {[%clk 0:03:00.9]} 1... e5 {[%clk 0:02:58.6]} 2. f4 {[%clk 0:03:00.2]}
2... Bc5 {[%clk 0:02:57]} 3. Nf3 {[%clk 0:02:58.3]} 3... d6 {[%clk 0:02:57.1]}
4. c3 {[%clk 0:02:58.4]} 4... Nf6 {[%clk 0:02:55.7]} 5. fxe5 {[%clk 0:02:57.8]}
5... dxe5 {[%clk 0:02:55]} 6. Nxe5 {[%clk 0:02:58.7]} 6... O-O {[%clk
0:02:50.5]} 7. d4 {[%clk 0:02:58.1]} 7... Bb6 {[%clk 0:02:29]} 8. Nxf7 {[%clk
0:02:53.6]} 8... Rxf7 {[%clk 0:02:27.4]} 9. Bc4 {[%clk 0:02:53.6]} 9... Nxe4
{[%clk 0:02:11.6]} 10. Bxf7+ {[%clk 0:02:52.9]} 10... Kxf7 {[%clk 0:02:10.9]}
11. O-O+ {[%clk 0:02:53.8]} 11... Nf6 {[%clk 0:02:08.8]} 12. Bg5 {[%clk
0:02:51]} 12... Nd7 {[%clk 0:01:50]} 13. Nd2 {[%clk 0:02:44.6]} 13... Qe7 {[%clk
0:01:23.3]} 14. Nc4 {[%clk 0:01:55.3]} 14... Kg8 {[%clk 0:01:17]} 15. Qb3 {[%clk
0:01:45.5]} 15... Kh8 {[%clk 0:01:11.3]} 16. Rae1 {[%clk 0:01:45.1]} 16... Qf7
{[%clk 0:01:03.7]} 17. Bxf6 {[%clk 0:01:38.9]} 17... Nxf6 {[%clk 0:00:59.8]} 18.
Nxb6 {[%clk 0:01:35.1]} 18... Be6 {[%clk 0:00:37.1]} 19. Qxe6 {[%clk 0:01:32.1]}
19... Qxe6 {[%clk 0:00:37.3]} 20. Rxe6 {[%clk 0:01:31.9]} 20... axb6 {[%clk
0:00:37.7]} 21. Re7 {[%clk 0:01:26.5]} 21... h6 {[%clk 0:00:36.7]} 22. Rxc7
{[%clk 0:01:14.7]} 22... Rxa2 {[%clk 0:00:35.5]} 23. Rb1 {[%clk 0:01:15.1]}
23... Nd5 {[%clk 0:00:32.6]} 24. Rxb7 {[%clk 0:01:13.3]} 24... Kh7 {[%clk
0:00:32.7]} 25. c4 {[%clk 0:01:12.9]} 25... Nf4 {[%clk 0:00:31.5]} 26. d5 {[%clk
0:01:09.2]} 26... Kg6 {[%clk 0:00:26.2]} 27. Rxb6+ {[%clk 0:01:08.7]} 27... Kf5
{[%clk 0:00:25.5]} 28. Rf1 {[%clk 0:01:08.8]} 1-0

[Event "*** Titled Tuesday Blitz"]
[Site "Chess.com"]
[Date "2020.05.12"]
[Round "4"]
[White "ckgchess"]
[Black "Mikedannnn"]
[Result "1-0"]
[WhiteElo "2653"]
[BlackElo "2465"]
[TimeControl "180+1"]
[EndTime "10:37:12 PDT"]
[Termination "ckgchess won by resignation"]

1. e4 {[%clk 0:03:00.9]} 1... c5 {[%clk 0:02:59.2]} 2. c3 {[%clk 0:03:01.1]}
2... d6 {[%clk 0:02:56.8]} 3. d4 {[%clk 0:03:01.1]} 3... Nf6 {[%clk 0:02:57.1]}
4. dxc5 {[%clk 0:02:57.4]} 4... Nc6 {[%clk 0:02:56.7]} 5. Bd3 {[%clk 0:02:44.1]}
5... dxc5 {[%clk 0:02:56.4]} 6. Nf3 {[%clk 0:02:43.8]} 6... Bg4 {[%clk
0:02:43.3]} 7. h3 {[%clk 0:02:43.6]} 7... Bxf3 {[%clk 0:02:39.3]} 8. Qxf3 {[%clk
0:02:44.5]} 8... Ne5 {[%clk 0:02:09.6]} 9. Bb5+ {[%clk 0:02:44.1]} 9... Nfd7
{[%clk 0:02:10.2]} 10. Qg3 {[%clk 0:02:41.1]} 10... Qb6 {[%clk 0:02:09.2]} 11.
Na3 {[%clk 0:02:37.6]} 11... a6 {[%clk 0:02:04.5]} 12. Ba4 {[%clk 0:02:34.5]}
12... Qe6 {[%clk 0:01:52.9]} 13. O-O {[%clk 0:02:26.5]} 13... b5 {[%clk
0:01:52.5]} 14. Nxb5 {[%clk 0:02:07.4]} 14... axb5 {[%clk 0:01:51.4]} 15. Bxb5
{[%clk 0:02:08.3]} 15... Rc8 {[%clk 0:00:41.4]} 16. f4 {[%clk 0:01:57.7]} 16...
Nc6 {[%clk 0:00:40.8]} 17. f5 {[%clk 0:01:37.7]} 17... Qxe4 {[%clk 0:00:36.3]}
18. Bg5 {[%clk 0:01:37.2]} 18... f6 {[%clk 0:00:23.3]} 19. Rae1 {[%clk
0:01:36.2]} 19... Qc2 {[%clk 0:00:17.1]} 20. Rf2 {[%clk 0:01:31.4]} 20... Qxf2+
{[%clk 0:00:10.2]} 21. Kxf2 {[%clk 0:01:30.5]} 21... fxg5 {[%clk 0:00:10.4]} 22.
Qxg5 {[%clk 0:01:26.8]} 22... Kf7 {[%clk 0:00:05]} 23. Qh5+ {[%clk 0:01:23.1]}
23... g6 {[%clk 0:00:04.7]} 24. fxg6+ {[%clk 0:01:24]} 24... hxg6 {[%clk
0:00:05.1]} 25. Qxh8 {[%clk 0:01:23]} 1-0

[Event "*** Titled Tuesday Blitz"]
[Site "Chess.com"]
[Date "2020.05.12"]
[Round "4"]
[White "barbara25"]
[Black "AttilaTurzo"]
[Result "1/2-1/2"]
[WhiteElo "2310"]
[BlackElo "2472"]
[TimeControl "180+1"]
[EndTime "10:37:13 PDT"]
[Termination "Game drawn by repetition"]

1. e4 {[%clk 0:03:00.9]} 1... c5 {[%clk 0:02:59.9]} 2. Nf3 {[%clk 0:03:00.5]}
2... Nc6 {[%clk 0:03:00.2]} 3. Bb5 {[%clk 0:02:59.1]} 3... g6 {[%clk 0:03:00.2]}
4. O-O {[%clk 0:02:57.9]} 4... Bg7 {[%clk 0:03:00.4]} 5. c3 {[%clk 0:02:57.8]}
5... e5 {[%clk 0:03:00.7]} 6. d3 {[%clk 0:02:51.6]} 6... Nge7 {[%clk 0:03:00.5]}
7. Be3 {[%clk 0:02:51.1]} 7... d6 {[%clk 0:02:57]} 8. d4 {[%clk 0:02:50.1]} 8...
exd4 {[%clk 0:02:56.2]} 9. cxd4 {[%clk 0:02:49.8]} 9... O-O {[%clk 0:02:55.5]}
10. dxc5 {[%clk 0:02:49.4]} 10... dxc5 {[%clk 0:02:55.3]} 11. Qxd8 {[%clk
0:02:46.9]} 11... Rxd8 {[%clk 0:02:54.9]} 12. Nc3 {[%clk 0:02:47.2]} 12... Nd4
{[%clk 0:02:52.4]} 13. Rfd1 {[%clk 0:02:39.5]} 13... Bg4 {[%clk 0:02:48.8]} 14.
Bxd4 {[%clk 0:02:28.9]} 14... cxd4 {[%clk 0:02:44.1]} 15. Ne2 {[%clk 0:02:28.7]}
15... a6 {[%clk 0:02:21.9]} 16. Bd3 {[%clk 0:02:26.9]} 16... Nc6 {[%clk
0:02:13.7]} 17. h3 {[%clk 0:02:26.6]} 17... Bxf3 {[%clk 0:02:09.1]} 18. gxf3
{[%clk 0:02:26.2]} 18... b5 {[%clk 0:02:06.9]} 19. Rac1 {[%clk 0:02:23.6]} 19...
Rac8 {[%clk 0:02:06.4]} 20. Kg2 {[%clk 0:02:18.3]} 20... Nb4 {[%clk 0:02:01]}
21. a3 {[%clk 0:02:13.5]} 21... Nc6 {[%clk 0:01:54.5]} 22. a4 {[%clk 0:02:08.6]}
22... Nb4 {[%clk 0:01:29.9]} 23. axb5 {[%clk 0:02:04.4]} 23... Nxd3 {[%clk
0:01:28.6]} 24. Rxd3 {[%clk 0:02:03.5]} 24... axb5 {[%clk 0:01:24.6]} 25. Rxc8
{[%clk 0:02:01.7]} 25... Rxc8 {[%clk 0:01:25.5]} 26. f4 {[%clk 0:01:46.5]} 26...
Rc2 {[%clk 0:01:22.2]} 27. Nxd4 {[%clk 0:01:45.7]} 27... Bxd4 {[%clk 0:01:16]}
28. Rxd4 {[%clk 0:01:44.8]} 28... Rxb2 {[%clk 0:01:16.9]} 29. e5 {[%clk
0:01:44.9]} 29... Rb3 {[%clk 0:01:14.2]} 30. Rd8+ {[%clk 0:01:43.7]} 30... Kg7
{[%clk 0:01:14]} 31. Rd7 {[%clk 0:01:43.7]} 31... Kf8 {[%clk 0:01:14.4]} 32. Rb7
{[%clk 0:01:42.9]} 32... h5 {[%clk 0:01:11]} 33. h4 {[%clk 0:01:36.5]} 33... Ke8
{[%clk 0:01:07.4]} 34. Rb6 {[%clk 0:01:34.2]} 34... Ke7 {[%clk 0:01:06]} 35.
Rb7+ {[%clk 0:01:26.1]} 35... Ke6 {[%clk 0:01:05.9]} 36. Rb6+ {[%clk 0:01:25.8]}
36... Ke7 {[%clk 0:01:02.9]} 37. Rb7+ {[%clk 0:01:25.4]} 37... Kf8 {[%clk
0:01:03.1]} 38. Rb8+ {[%clk 0:01:23.4]} 38... Kg7 {[%clk 0:01:00.4]} 39. Rb7
{[%clk 0:01:23.1]} 39... Kg8 {[%clk 0:00:52.7]} 40. Rb8+ {[%clk 0:01:22.7]}
40... Kg7 {[%clk 0:00:49.1]} 41. Rb7 {[%clk 0:01:20.3]} 41... Kf8 {[%clk
0:00:49.2]} 42. Rb8+ {[%clk 0:01:20.1]} 42... Ke7 {[%clk 0:00:48.9]} 43. Rb7+
{[%clk 0:01:20]} 1/2-1/2

[Event "*** Titled Tuesday Blitz"]
[Site "Chess.com"]
[Date "2020.05.12"]
[Round "4"]
[White "GM_DarwinLaylo"]
[Black "Logman74"]
[Result "0-1"]
[WhiteElo "2522"]
[BlackElo "2370"]
[TimeControl "180+1"]
[EndTime "10:37:16 PDT"]
[Termination "Logman74 won by resignation"]

1. c4 {[%clk 0:02:59.9]} 1... Nf6 {[%clk 0:02:59]} 2. Nc3 {[%clk 0:03:00.1]}
2... g6 {[%clk 0:02:59.4]} 3. g3 {[%clk 0:02:59.7]} 3... Bg7 {[%clk 0:02:59.4]}
4. Bg2 {[%clk 0:03:00.2]} 4... O-O {[%clk 0:02:59.6]} 5. e4 {[%clk 0:02:59.9]}
5... d6 {[%clk 0:02:59.4]} 6. Nge2 {[%clk 0:03:00.2]} 6... c5 {[%clk 0:02:58.2]}
7. O-O {[%clk 0:03:00.5]} 7... Nc6 {[%clk 0:02:57.5]} 8. d3 {[%clk 0:03:01]}
8... Bg4 {[%clk 0:02:53.9]} 9. f3 {[%clk 0:03:00.1]} 9... Bd7 {[%clk 0:02:53.3]}
10. g4 {[%clk 0:02:58.9]} 10... Ne8 {[%clk 0:02:51.9]} 11. h3 {[%clk 0:02:55.8]}
11... Nc7 {[%clk 0:02:51.6]} 12. Be3 {[%clk 0:02:53.2]} 12... Rb8 {[%clk
0:02:49.2]} 13. f4 {[%clk 0:02:52]} 13... b5 {[%clk 0:02:43.3]} 14. Qd2 {[%clk
0:02:49.2]} 14... bxc4 {[%clk 0:02:33.4]} 15. dxc4 {[%clk 0:02:48.3]} 15... Ne6
{[%clk 0:02:30.5]} 16. b3 {[%clk 0:02:30.2]} 16... Ned4 {[%clk 0:02:24.2]} 17.
Rad1 {[%clk 0:02:21.6]} 17... Qa5 {[%clk 0:02:17.9]} 18. f5 {[%clk 0:02:12.4]}
18... Nxe2+ {[%clk 0:02:04]} 19. Nxe2 {[%clk 0:02:10.8]} 19... Qxd2 {[%clk
0:02:02.7]} 20. Rxd2 {[%clk 0:02:10.7]} 20... a5 {[%clk 0:02:00.6]} 21. Bxc5
{[%clk 0:02:07.4]} 21... Bh6 {[%clk 0:01:34]} 22. Rdd1 {[%clk 0:01:49.1]} 22...
a4 {[%clk 0:01:14.2]} 23. f6 {[%clk 0:01:26.5]} 23... dxc5 {[%clk 0:01:05.7]}
24. Rxd7 {[%clk 0:01:24.9]} 24... exf6 {[%clk 0:01:05.8]} 25. Rxf6 {[%clk
0:01:11.9]} 25... Ne5 {[%clk 0:01:02.5]} 26. Rf1 {[%clk 0:01:04.7]} 26... Nxd7
{[%clk 0:01:00.4]} 0-1

[Event "*** Titled Tuesday Blitz"]
[Site "Chess.com"]
[Date "2020.05.12"]
[Round "4"]
[White "madalin18"]
[Black "Aradej"]
[Result "0-1"]
[WhiteElo "2180"]
[BlackElo "2495"]
[TimeControl "180+1"]
[EndTime "10:37:18 PDT"]
[Termination "Aradej won by resignation"]

1. e4 {[%clk 0:03:00.9]} 1... d6 {[%clk 0:02:59.3]} 2. d4 {[%clk 0:03:00.1]}
2... Nf6 {[%clk 0:02:59.8]} 3. Nc3 {[%clk 0:03:00.4]} 3... e5 {[%clk 0:03:00.4]}
4. Nf3 {[%clk 0:02:58.7]} 4... Nbd7 {[%clk 0:03:00.3]} 5. Bc4 {[%clk 0:02:57.6]}
5... Be7 {[%clk 0:03:00.7]} 6. O-O {[%clk 0:02:57]} 6... O-O {[%clk 0:03:00.7]}
7. Bg5 {[%clk 0:02:54.6]} 7... h6 {[%clk 0:02:59]} 8. Be3 {[%clk 0:02:51.2]}
8... c6 {[%clk 0:02:59.1]} 9. h3 {[%clk 0:02:49.1]} 9... b5 {[%clk 0:02:57.3]}
10. Bb3 {[%clk 0:02:47.2]} 10... b4 {[%clk 0:02:56.6]} 11. Ne2 {[%clk
0:02:29.5]} 11... Nxe4 {[%clk 0:02:55.6]} 12. Ng3 {[%clk 0:02:23.3]} 12... Nxg3
{[%clk 0:02:54.5]} 13. fxg3 {[%clk 0:02:23.4]} 13... exd4 {[%clk 0:02:52.4]} 14.
Nxd4 {[%clk 0:02:22.9]} 14... Ne5 {[%clk 0:02:48.4]} 15. Bf4 {[%clk 0:02:10.6]}
15... Qb6 {[%clk 0:02:44.6]} 16. Kh1 {[%clk 0:02:03.6]} 16... Ng6 {[%clk
0:02:41.9]} 17. c3 {[%clk 0:01:45.6]} 17... a5 {[%clk 0:02:40.3]} 18. Qh5 {[%clk
0:01:44.4]} 18... d5 {[%clk 0:02:39.1]} 19. Nf5 {[%clk 0:01:42.8]} 19... Bxf5
{[%clk 0:02:38.1]} 20. Qxf5 {[%clk 0:01:42.6]} 20... a4 {[%clk 0:02:20.5]} 21.
Bc2 {[%clk 0:01:41.7]} 21... a3 {[%clk 0:02:20.2]} 22. bxa3 {[%clk 0:01:33.6]}
22... bxc3 {[%clk 0:02:15.6]} 23. Rae1 {[%clk 0:01:15.6]} 23... Qd8 {[%clk
0:02:09]} 24. Qh5 {[%clk 0:01:08.8]} 24... Nxf4 {[%clk 0:01:59.5]} 25. Rxf4
{[%clk 0:01:08.1]} 25... Bg5 {[%clk 0:01:58.1]} 26. Rxf7 {[%clk 0:00:48.4]}
26... Rxf7 {[%clk 0:01:56.7]} 27. Qg6 {[%clk 0:00:48.9]} 27... Rf6 {[%clk
0:01:55.9]} 28. Qh7+ {[%clk 0:00:48.9]} 28... Kf7 {[%clk 0:01:55.5]} 29. h4
{[%clk 0:00:45.4]} 29... Bd2 {[%clk 0:01:54.2]} 30. Re2 {[%clk 0:00:33]} 30...
Qg8 {[%clk 0:01:41.2]} 31. Qd3 {[%clk 0:00:30.1]} 31... Re8 {[%clk 0:01:40.3]}
32. h5 {[%clk 0:00:22.2]} 32... Rxe2 {[%clk 0:01:39.4]} 33. Qxe2 {[%clk
0:00:22.5]} 33... Qe8 {[%clk 0:01:38.1]} 34. Bg6+ {[%clk 0:00:20.8]} 34... Rxg6
{[%clk 0:01:38]} 35. hxg6+ {[%clk 0:00:19.2]} 35... Kf8 {[%clk 0:01:38.6]} 36.
Qf3+ {[%clk 0:00:19.1]} 36... Kg8 {[%clk 0:01:38.7]} 37. Kh2 {[%clk 0:00:19.2]}
37... Qxg6 {[%clk 0:01:37.5]} 38. g4 {[%clk 0:00:17.2]} 38... Kh7 {[%clk
0:01:37.4]} 0-1

[Event "*** Titled Tuesday Blitz"]
[Site "Chess.com"]
[Date "2020.05.12"]
[Round "4"]
[White "Antipov_Mikhail_Al"]
[Black "csati17"]
[Result "1-0"]
[WhiteElo "2870"]
[BlackElo "2532"]
[TimeControl "180+1"]
[EndTime "10:37:21 PDT"]
[Termination "Antipov_Mikhail_Al won by resignation"]

1. e4 {[%clk 0:03:00.9]} 1... e6 {[%clk 0:03:00.4]} 2. d4 {[%clk 0:02:59.3]}
2... d5 {[%clk 0:03:00.9]} 3. Nd2 {[%clk 0:02:59.6]} 3... Nf6 {[%clk 0:02:59.4]}
4. e5 {[%clk 0:02:59]} 4... Nfd7 {[%clk 0:03:00.1]} 5. f4 {[%clk 0:02:59.7]}
5... c5 {[%clk 0:03:00]} 6. c3 {[%clk 0:03:00.4]} 6... Nc6 {[%clk 0:03:00.4]} 7.
Ndf3 {[%clk 0:03:00.5]} 7... Qb6 {[%clk 0:02:57.3]} 8. g3 {[%clk 0:03:00.6]}
8... cxd4 {[%clk 0:02:57.5]} 9. cxd4 {[%clk 0:03:01.5]} 9... Bb4+ {[%clk
0:02:58]} 10. Kf2 {[%clk 0:03:02]} 10... g5 {[%clk 0:02:58.7]} 11. fxg5 {[%clk
0:02:56.2]} 11... Ndxe5 {[%clk 0:02:56.5]} 12. Nxe5 {[%clk 0:02:43.4]} 12...
Nxe5 {[%clk 0:02:55.2]} 13. Be3 {[%clk 0:02:43.8]} 13... Nc6 {[%clk 0:02:40.4]}
14. Nf3 {[%clk 0:02:43.3]} 14... Bd6 {[%clk 0:02:30.6]} 15. Rb1 {[%clk
0:02:42.3]} 15... Bd7 {[%clk 0:02:27.5]} 16. b4 {[%clk 0:02:40.8]} 16... Ne7
{[%clk 0:02:18.4]} 17. a4 {[%clk 0:02:34.3]} 17... Nf5 {[%clk 0:02:15.1]} 18. a5
{[%clk 0:02:34.6]} 18... Qd8 {[%clk 0:02:13.4]} 19. Bf4 {[%clk 0:02:32.5]} 19...
Bxf4 {[%clk 0:02:07]} 20. gxf4 {[%clk 0:02:33.4]} 20... Qc7 {[%clk 0:02:01.8]}
21. Qd2 {[%clk 0:02:28.4]} 21... Nd6 {[%clk 0:01:49.4]} 22. Rc1 {[%clk
0:02:26.7]} 22... Qd8 {[%clk 0:01:49.2]} 23. Bd3 {[%clk 0:02:26.1]} 23... a6
{[%clk 0:01:28.3]} 24. Ne5 {[%clk 0:02:20.2]} 24... Bb5 {[%clk 0:01:16.2]} 25.
Bxb5+ {[%clk 0:02:12.4]} 25... axb5 {[%clk 0:01:17.1]} 26. Qd3 {[%clk
0:02:13.3]} 26... f6 {[%clk 0:01:13.6]} 27. Nf3 {[%clk 0:02:03.7]} 27... fxg5
{[%clk 0:01:01.4]} 28. Nxg5 {[%clk 0:02:02.4]} 28... Qf6 {[%clk 0:00:57.3]} 29.
Qe3 {[%clk 0:01:50.9]} 29... Kd7 {[%clk 0:00:56.6]} 30. Nf3 {[%clk 0:01:33.7]}
30... Rac8 {[%clk 0:00:47.1]} 31. Qe5 {[%clk 0:01:27.6]} 31... Ne4+ {[%clk
0:00:33.7]} 32. Ke3 {[%clk 0:01:27.3]} 32... Rxc1 {[%clk 0:00:26.3]} 33. Rxc1
{[%clk 0:01:24.9]} 33... Qxe5 {[%clk 0:00:24]} 34. Nxe5+ {[%clk 0:01:25.8]} 1-0